[Event "*** Titled Tuesday Blitz"]
[Site "Chess.com"]
[Date "2020.04.21"]
[Round "6"]
[White "KinKaiser"]
[Black "EvgenyRomanov"]
[Result "1/2-1/2"]
[WhiteElo "2496"]
[BlackElo "2628"]
[TimeControl "180+1"]
[EndTime "11:10:02 PDT"]
[Termination "Game drawn by repetition"]

1. d4 {[%clk 0:03:00.9]} 1... Nf6 {[%clk 0:02:58.4]} 2. Nf3 {[%clk 0:03:00.1]}
2... e6 {[%clk 0:02:59.3]} 3. Bf4 {[%clk 0:02:59.2]} 3... c5 {[%clk 0:02:54.1]}
4. e3 {[%clk 0:02:58.3]} 4... Qb6 {[%clk 0:02:53.3]} 5. Qc1 {[%clk 0:02:57.6]}
5... Nc6 {[%clk 0:02:50.8]} 6. c3 {[%clk 0:02:57.3]} 6... d5 {[%clk 0:02:50.3]}
7. Nbd2 {[%clk 0:02:55.5]} 7... Bd7 {[%clk 0:02:49.1]} 8. Qc2 {[%clk 0:02:48.9]}
8... Rc8 {[%clk 0:02:45.1]} 9. Qb3 {[%clk 0:02:47.4]} 9... Nh5 {[%clk
0:02:37.5]} 10. Bg3 {[%clk 0:02:39.3]} 10... Nxg3 {[%clk 0:02:29.6]} 11. hxg3
{[%clk 0:02:39.2]} 11... c4 {[%clk 0:02:30.3]} 12. Qxb6 {[%clk 0:02:34.5]} 12...
axb6 {[%clk 0:02:31.2]} 13. a3 {[%clk 0:02:33.4]} 13... f5 {[%clk 0:02:26.1]}
14. Nh2 {[%clk 0:02:24.3]} 14... g5 {[%clk 0:02:21.6]} 15. f4 {[%clk 0:02:21.7]}
15... g4 {[%clk 0:02:21.5]} 16. Be2 {[%clk 0:02:10]} 16... Be7 {[%clk
0:02:19.2]} 17. Nhf1 {[%clk 0:02:08.8]} 17... h5 {[%clk 0:02:18.8]} 18. Kf2
{[%clk 0:02:03.6]} 18... Kf7 {[%clk 0:02:17.6]} 19. Rb1 {[%clk 0:02:03]} 19...
b5 {[%clk 0:02:17.3]} 20. Ra1 {[%clk 0:02:02.7]} 20... Ra8 {[%clk 0:02:07.9]}
21. Rb1 {[%clk 0:02:00.4]} 21... Rh7 {[%clk 0:02:01.3]} 22. Bd1 {[%clk
0:01:57.6]} 22... b6 {[%clk 0:01:54.6]} 23. Be2 {[%clk 0:01:57.5]} 23... Na5
{[%clk 0:01:54.1]} 24. Rc1 {[%clk 0:01:55.6]} 24... Nb7 {[%clk 0:01:53.6]} 25.
Rb1 {[%clk 0:01:55.7]} 25... Nd6 {[%clk 0:01:53.7]} 26. Rc1 {[%clk 0:01:55.4]}
26... Rah8 {[%clk 0:01:52.6]} 27. Rd1 {[%clk 0:01:47.2]} 27... b4 {[%clk
0:01:36.1]} 28. axb4 {[%clk 0:01:41.4]} 28... Ba4 {[%clk 0:01:35.9]} 29. Ra1
{[%clk 0:01:38]} 29... b5 {[%clk 0:01:36]} 30. Bd1 {[%clk 0:01:35.3]} 30... Ra8
{[%clk 0:01:29.9]} 31. Bxa4 {[%clk 0:01:34.4]} 31... bxa4 {[%clk 0:01:29.4]} 32.
Ke2 {[%clk 0:01:28.8]} 32... Kg6 {[%clk 0:01:11.4]} 33. Ra2 {[%clk 0:01:22.6]}
33... Bf6 {[%clk 0:01:09.4]} 34. Ra1 {[%clk 0:01:22.5]} 34... Rha7 {[%clk
0:01:07.1]} 35. Nb1 {[%clk 0:01:18.2]} 35... Ne4 {[%clk 0:01:06.4]} 36. Nbd2
{[%clk 0:01:16.8]} 36... a3 {[%clk 0:01:04.7]} 37. Nxe4 {[%clk 0:01:08.7]} 37...
axb2 {[%clk 0:00:57.6]} 38. Rb1 {[%clk 0:01:05.3]} 38... fxe4 {[%clk 0:00:54]}
39. Nd2 {[%clk 0:01:00.6]} 39... Ra3 {[%clk 0:00:52.8]} 40. Rxb2 {[%clk
0:00:54.1]} 40... Rxc3 {[%clk 0:00:52.7]} 41. b5 {[%clk 0:00:50.7]} 41... Rca3
{[%clk 0:00:51.6]} 42. Nb1 {[%clk 0:00:43.5]} 42... Ra2 {[%clk 0:00:50.7]} 43.
Rd2 {[%clk 0:00:28.8]} 43... Rxd2+ {[%clk 0:00:40.4]} 44. Kxd2 {[%clk
0:00:21.4]} 44... Ra2+ {[%clk 0:00:38.8]} 45. Kc3 {[%clk 0:00:21.7]} 45... Bd8
{[%clk 0:00:38.7]} 46. Kb4 {[%clk 0:00:19.4]} 46... Bb6 {[%clk 0:00:36.2]} 47.
Rc1 {[%clk 0:00:16.5]} 47... Rb2+ {[%clk 0:00:27.2]} 48. Kc3 {[%clk 0:00:15.2]}
48... Rxb5 {[%clk 0:00:24.7]} 49. Kc2 {[%clk 0:00:14.1]} 49... Rb3 {[%clk
0:00:22]} 50. Nc3 {[%clk 0:00:13.8]} 50... Ba5 {[%clk 0:00:21.9]} 51. Kd2 {[%clk
0:00:13.1]} 51... h4 {[%clk 0:00:19.1]} 52. gxh4 {[%clk 0:00:08.9]} 52... g3
{[%clk 0:00:19.2]} 53. Rc2 {[%clk 0:00:08.2]} 53... Kh5 {[%clk 0:00:19.3]} 54.
Rc1 {[%clk 0:00:07.9]} 54... Kxh4 {[%clk 0:00:19.5]} 55. Rh1+ {[%clk 0:00:07.6]}
55... Kg4 {[%clk 0:00:20]} 56. Rc1 {[%clk 0:00:08.2]} 56... Kf5 {[%clk
0:00:19.7]} 57. Rc2 {[%clk 0:00:08.3]} 57... Kf6 {[%clk 0:00:19.4]} 58. Rc1
{[%clk 0:00:08.7]} 58... Ke7 {[%clk 0:00:19.1]} 59. Rc2 {[%clk 0:00:09.1]} 59...
Kd6 {[%clk 0:00:19.4]} 60. Rc1 {[%clk 0:00:09.6]} 60... Kc6 {[%clk 0:00:20.1]}
61. Rc2 {[%clk 0:00:09.6]} 61... Rxc3 {[%clk 0:00:19.6]} 62. Rxc3 {[%clk
0:00:09.7]} 62... Kb5 {[%clk 0:00:20]} 63. Kc2 {[%clk 0:00:09.3]} 63... Bxc3
{[%clk 0:00:20.4]} 64. Kxc3 {[%clk 0:00:09.4]} 64... Ka4 {[%clk 0:00:21.3]} 65.
Kb2 {[%clk 0:00:07.8]} 65... Kb4 {[%clk 0:00:21.4]} 66. Kc2 {[%clk 0:00:08.1]}
66... c3 {[%clk 0:00:22]} 67. Kc1 {[%clk 0:00:07.9]} 67... Kb3 {[%clk
0:00:21.9]} 68. Kb1 {[%clk 0:00:05.3]} 68... Kb4 {[%clk 0:00:21]} 69. Kc1 {[%clk
0:00:04.4]} 69... Kb5 {[%clk 0:00:21.1]} 70. Kb1 {[%clk 0:00:04.1]} 70... Kb4
{[%clk 0:00:20.3]} 71. Kc1 {[%clk 0:00:04.3]} 1/2-1/2

[Event "*** Titled Tuesday Blitz"]
[Site "Chess.com"]
[Date "2020.04.21"]
[Round "6"]
[White "binbin239"]
[Black "bupunsu01"]
[Result "1-0"]
[WhiteElo "2445"]
[BlackElo "2287"]
[TimeControl "180+1"]
[EndTime "11:10:02 PDT"]
[Termination "binbin239 won on time"]

1. d4 {[%clk 0:03:00.7]} 1... Nf6 {[%clk 0:02:58.9]} 2. c4 {[%clk 0:03:00.7]}
2... g6 {[%clk 0:02:58]} 3. Nc3 {[%clk 0:03:00.7]} 3... Bg7 {[%clk 0:02:57.5]}
4. Nf3 {[%clk 0:02:56.6]} 4... O-O {[%clk 0:02:56.9]} 5. g3 {[%clk 0:02:57.1]}
5... d6 {[%clk 0:02:56.6]} 6. Bg2 {[%clk 0:02:57.5]} 6... Nc6 {[%clk 0:02:56.4]}
7. d5 {[%clk 0:02:54.1]} 7... Na5 {[%clk 0:02:54.4]} 8. Nd2 {[%clk 0:02:54.4]}
8... c5 {[%clk 0:02:53.1]} 9. O-O {[%clk 0:02:54.3]} 9... a6 {[%clk 0:02:52.5]}
10. Qc2 {[%clk 0:02:54.7]} 10... Rb8 {[%clk 0:02:51.7]} 11. b3 {[%clk
0:02:54.8]} 11... b5 {[%clk 0:02:51]} 12. Bb2 {[%clk 0:02:54.5]} 12... Bf5
{[%clk 0:02:41.4]} 13. e4 {[%clk 0:02:54.4]} 13... Bd7 {[%clk 0:02:40.4]} 14.
Nd1 {[%clk 0:02:53.5]} 14... e6 {[%clk 0:02:31.9]} 15. e5 {[%clk 0:02:45.3]}
15... Ne8 {[%clk 0:02:09.3]} 16. dxe6 {[%clk 0:02:42]} 16... Bxe6 {[%clk
0:02:04.5]} 17. exd6 {[%clk 0:02:42.1]} 17... bxc4 {[%clk 0:01:52.2]} 18. Bxg7
{[%clk 0:02:40.8]} 18... Nxg7 {[%clk 0:01:50.2]} 19. bxc4 {[%clk 0:02:37.1]}
19... Qxd6 {[%clk 0:01:47.1]} 20. Ne4 {[%clk 0:02:36.8]} 20... Qd4 {[%clk
0:01:43]} 21. Ne3 {[%clk 0:02:31.4]} 21... Nxc4 {[%clk 0:01:34.1]} 22. Nxc4
{[%clk 0:02:15.2]} 22... Qxc4 {[%clk 0:01:31.1]} 23. Qxc4 {[%clk 0:02:11]} 23...
Bxc4 {[%clk 0:01:30.4]} 24. Rfc1 {[%clk 0:02:11.1]} 24... Be6 {[%clk 0:01:27]}
25. Nxc5 {[%clk 0:02:09.7]} 25... Rb6 {[%clk 0:01:22.9]} 26. a4 {[%clk
0:02:08.2]} 26... Bc8 {[%clk 0:01:10.3]} 27. a5 {[%clk 0:02:05.4]} 27... Rb2
{[%clk 0:01:05.2]} 28. Bf1 {[%clk 0:02:01.1]} 28... Rd8 {[%clk 0:00:59.2]} 29.
Nxa6 {[%clk 0:01:55.2]} 29... Bb7 {[%clk 0:00:52.6]} 30. Nc5 {[%clk 0:01:52.7]}
30... Ba8 {[%clk 0:00:52.2]} 31. Nd3 {[%clk 0:01:51.8]} 31... Rd2 {[%clk
0:00:50.3]} 32. Nf4 {[%clk 0:01:43.9]} 32... Nf5 {[%clk 0:00:48.3]} 33. a6
{[%clk 0:01:43.1]} 33... Nd4 {[%clk 0:00:47.3]} 34. Bg2 {[%clk 0:01:42.7]} 34...
Nb3 {[%clk 0:00:44.1]} 35. Bxa8 {[%clk 0:01:35.8]} 35... Nxa1 {[%clk 0:00:35.4]}
36. Bd5 {[%clk 0:01:16.7]} 36... g5 {[%clk 0:00:29.7]} 37. a7 {[%clk 0:01:00.7]}
37... gxf4 {[%clk 0:00:26.1]} 38. a8=Q {[%clk 0:01:00.6]} 38... Rxa8 {[%clk
0:00:25.9]} 39. Bxa8 {[%clk 0:01:00.4]} 39... Nb3 {[%clk 0:00:25.7]} 40. Rc8+
{[%clk 0:00:54.3]} 40... Kg7 {[%clk 0:00:24]} 41. gxf4 {[%clk 0:00:53.1]} 41...
Nd4 {[%clk 0:00:23.3]} 42. Kg2 {[%clk 0:00:51.8]} 42... Ne6 {[%clk 0:00:20.5]}
43. Kg3 {[%clk 0:00:52]} 43... Rd3+ {[%clk 0:00:19.1]} 44. f3 {[%clk 0:00:52.4]}
44... Kf6 {[%clk 0:00:18.2]} 45. Be4 {[%clk 0:00:50.6]} 45... Rd4 {[%clk
0:00:17.7]} 46. Rc6 {[%clk 0:00:50]} 46... Ke7 {[%clk 0:00:15.2]} 47. Bxh7
{[%clk 0:00:50.2]} 47... Nxf4 {[%clk 0:00:13.9]} 48. Be4 {[%clk 0:00:50.3]}
48... Ne6 {[%clk 0:00:11.6]} 49. Ra6 {[%clk 0:00:50.3]} 49... Rd2 {[%clk
0:00:10.5]} 50. h4 {[%clk 0:00:49.7]} 50... Rd1 {[%clk 0:00:09.9]} 51. Ra7+
{[%clk 0:00:49.9]} 51... Kf6 {[%clk 0:00:09.6]} 52. Bc6 {[%clk 0:00:49.9]} 52...
Nd4 {[%clk 0:00:09]} 53. Be8 {[%clk 0:00:49.6]} 53... Nf5+ {[%clk 0:00:08.3]}
54. Kf2 {[%clk 0:00:47.8]} 54... Nxh4 {[%clk 0:00:05.1]} 55. Rxf7+ {[%clk
0:00:47]} 55... Ke6 {[%clk 0:00:05.1]} 56. Ra7 {[%clk 0:00:47]} 56... Rd2+
{[%clk 0:00:03.9]} 57. Kg3 {[%clk 0:00:46.9]} 57... Nf5+ {[%clk 0:00:03.3]} 58.
Kf4 {[%clk 0:00:46.1]} 58... Nd6 {[%clk 0:00:04.2]} 59. Bd7+ {[%clk 0:00:45]}
59... Kd5 {[%clk 0:00:03]} 60. Ra5+ {[%clk 0:00:44.4]} 60... Kc4 {[%clk
0:00:02.2]} 61. Kg5 {[%clk 0:00:43.5]} 1-0

[Event "*** Titled Tuesday Blitz"]
[Site "Chess.com"]
[Date "2020.04.21"]
[Round "6"]
[White "Grieve72"]
[Black "Blagorod"]
[Result "1-0"]
[WhiteElo "2338"]
[BlackElo "2121"]
[TimeControl "180+1"]
[EndTime "11:10:02 PDT"]
[Termination "Grieve72 won by checkmate"]

1. e4 {[%clk 0:03:00.9]} 1... e5 {[%clk 0:02:59.5]} 2. Nf3 {[%clk 0:03:00.1]}
2... Nf6 {[%clk 0:02:59.2]} 3. Nxe5 {[%clk 0:02:59.6]} 3... d6 {[%clk
0:02:59.2]} 4. Nf3 {[%clk 0:03:00.2]} 4... Nxe4 {[%clk 0:02:59.3]} 5. Nc3 {[%clk
0:03:00.9]} 5... Nxc3 {[%clk 0:02:59.3]} 6. dxc3 {[%clk 0:03:01.8]} 6... Be7
{[%clk 0:02:59.3]} 7. Be3 {[%clk 0:03:01.6]} 7... Nc6 {[%clk 0:02:59.1]} 8. Qd2
{[%clk 0:03:01.3]} 8... Be6 {[%clk 0:02:58.5]} 9. O-O-O {[%clk 0:02:59.1]} 9...
Qd7 {[%clk 0:02:59]} 10. Kb1 {[%clk 0:02:55.5]} 10... O-O-O {[%clk 0:02:57.5]}
11. Nd4 {[%clk 0:02:53.3]} 11... a6 {[%clk 0:02:38.3]} 12. Nxe6 {[%clk
0:02:49.9]} 12... fxe6 {[%clk 0:02:37.5]} 13. g3 {[%clk 0:02:47.4]} 13... d5
{[%clk 0:02:27.9]} 14. Bh3 {[%clk 0:02:47.4]} 14... Qd6 {[%clk 0:02:22.2]} 15.
Bf4 {[%clk 0:02:46.4]} 15... Qc5 {[%clk 0:02:13.6]} 16. Bxe6+ {[%clk 0:02:45.2]}
16... Kb8 {[%clk 0:02:14.2]} 17. Rhe1 {[%clk 0:02:35.2]} 17... Bf6 {[%clk
0:02:11.6]} 18. Be3 {[%clk 0:02:10.7]} 18... d4 {[%clk 0:01:56.5]} 19. cxd4
{[%clk 0:02:07.7]} 19... Nxd4 {[%clk 0:01:51.3]} 20. Bxd4 {[%clk 0:01:52.6]}
20... Rxd4 {[%clk 0:01:39.2]} 21. Qe3 {[%clk 0:01:41.1]} 21... Qb6 {[%clk
0:01:27.5]} 22. Rxd4 {[%clk 0:01:18.5]} 22... Bxd4 {[%clk 0:01:20.9]} 23. Qb3
{[%clk 0:01:18.8]} 23... Bxf2 {[%clk 0:00:56.6]} 24. Qxb6 {[%clk 0:01:12.2]}
24... Bxb6 {[%clk 0:00:56]} 25. c3 {[%clk 0:00:44.1]} 25... Rf8 {[%clk
0:00:53.3]} 26. Re2 {[%clk 0:00:44.1]} 26... Rf2 {[%clk 0:00:49.6]} 27. Rxf2
{[%clk 0:00:44.4]} 27... Bxf2 {[%clk 0:00:49.1]} 28. Kc2 {[%clk 0:00:44.9]}
28... h6 {[%clk 0:00:46.3]} 29. Kd3 {[%clk 0:00:40.1]} 29... b6 {[%clk
0:00:38.8]} 30. Ke4 {[%clk 0:00:39.8]} 30... Bc5 {[%clk 0:00:34]} 31. Kf5 {[%clk
0:00:34]} 31... Bd6 {[%clk 0:00:30.2]} 32. Bd5 {[%clk 0:00:31.8]} 32... Kc8
{[%clk 0:00:28.1]} 33. Bc6 {[%clk 0:00:29.6]} 33... Kd8 {[%clk 0:00:26.5]} 34.
Ke6 {[%clk 0:00:30]} 34... a5 {[%clk 0:00:24.3]} 35. a3 {[%clk 0:00:29]} 35...
h5 {[%clk 0:00:20.1]} 36. Kf7 {[%clk 0:00:23.5]} 36... Be5 {[%clk 0:00:17.9]}
37. Bf3 {[%clk 0:00:11.8]} 37... g5 {[%clk 0:00:13.2]} 38. Bxh5 {[%clk
0:00:10.5]} 38... Kd7 {[%clk 0:00:13.1]} 39. Kg6 {[%clk 0:00:08.3]} 39... Kd6
{[%clk 0:00:12.4]} 40. Kxg5 {[%clk 0:00:08.4]} 40... Kc5 {[%clk 0:00:12]} 41.
Bf7 {[%clk 0:00:07.3]} 41... b5 {[%clk 0:00:11.6]} 42. Kf5 {[%clk 0:00:06.7]}
42... Bh8 {[%clk 0:00:10.9]} 43. g4 {[%clk 0:00:05.5]} 43... b4 {[%clk
0:00:10.1]} 44. axb4+ {[%clk 0:00:05.8]} 44... axb4 {[%clk 0:00:10.4]} 45. cxb4+
{[%clk 0:00:06.2]} 45... Kxb4 {[%clk 0:00:09.9]} 46. b3 {[%clk 0:00:06.5]} 46...
c5 {[%clk 0:00:09.9]} 47. g5 {[%clk 0:00:06.3]} 47... Kc3 {[%clk 0:00:10.4]} 48.
h4 {[%clk 0:00:06]} 48... Kd4 {[%clk 0:00:10]} 49. h5 {[%clk 0:00:05.7]} 49...
Ke3 {[%clk 0:00:08.7]} 50. h6 {[%clk 0:00:05.8]} 50... Kf3 {[%clk 0:00:08]} 51.
g6 {[%clk 0:00:06.1]} 51... Bc3 {[%clk 0:00:07.9]} 52. g7 {[%clk 0:00:04.5]}
52... Bd2 {[%clk 0:00:06.1]} 53. h7 {[%clk 0:00:03.9]} 53... Bh6 {[%clk
0:00:06.6]} 54. g8=Q {[%clk 0:00:03.7]} 54... Be3 {[%clk 0:00:05.4]} 55. h8=Q
{[%clk 0:00:04]} 55... Ke2 {[%clk 0:00:05.6]} 56. Qh3 {[%clk 0:00:03.9]} 56...
Bd4 {[%clk 0:00:05]} 57. Qgg4+ {[%clk 0:00:04.8]} 57... Kd2 {[%clk 0:00:04.6]}
58. Qe4 {[%clk 0:00:05.7]} 58... Kc1 {[%clk 0:00:02.2]} 59. Qf1+ {[%clk
0:00:05.2]} 59... Kb2 {[%clk 0:00:01.8]} 60. Qc4 {[%clk 0:00:05.5]} 60... Ka3
{[%clk 0:00:01.6]} 61. Qec2 {[%clk 0:00:06.4]} 61... Bb2 {[%clk 0:00:01.1]} 62.
Qa4# {[%clk 0:00:07.3]} 1-0

[Event "*** Titled Tuesday Blitz"]
[Site "Chess.com"]
[Date "2020.04.21"]
[Round "6"]
[White "Efremov_Vlad"]
[Black "CookiesAndIceCream"]
[Result "0-1"]
[WhiteElo "2119"]
[BlackElo "2366"]
[TimeControl "180+1"]
[EndTime "11:10:03 PDT"]
[Termination "CookiesAndIceCream won by resignation"]

1. c4 {[%clk 0:03:00.9]} 1... e5 {[%clk 0:02:59.5]} 2. g3 {[%clk 0:03:00]} 2...
Nf6 {[%clk 0:02:59.3]} 3. Bg2 {[%clk 0:02:59.9]} 3... d5 {[%clk 0:02:59.6]} 4.
cxd5 {[%clk 0:02:59.7]} 4... Nxd5 {[%clk 0:02:47.9]} 5. Nc3 {[%clk 0:02:59.7]}
5... Nb6 {[%clk 0:02:47.9]} 6. Nf3 {[%clk 0:02:58.6]} 6... Nc6 {[%clk 0:02:48]}
7. O-O {[%clk 0:02:58.8]} 7... Be7 {[%clk 0:02:48.3]} 8. d3 {[%clk 0:02:56.6]}
8... O-O {[%clk 0:02:48.3]} 9. Bd2 {[%clk 0:02:55.6]} 9... Re8 {[%clk
0:02:45.6]} 10. a3 {[%clk 0:02:54.4]} 10... Bf8 {[%clk 0:02:34]} 11. b4 {[%clk
0:02:53.7]} 11... Bg4 {[%clk 0:02:31]} 12. Ne4 {[%clk 0:02:50]} 12... a5 {[%clk
0:02:28]} 13. Rb1 {[%clk 0:02:32.7]} 13... axb4 {[%clk 0:02:25.3]} 14. axb4
{[%clk 0:02:32.8]} 14... Nd4 {[%clk 0:02:23.8]} 15. Nxd4 {[%clk 0:02:24.5]}
15... exd4 {[%clk 0:02:23.2]} 16. h3 {[%clk 0:02:21.8]} 16... Bd7 {[%clk
0:02:18.4]} 17. Nc5 {[%clk 0:02:20.7]} 17... Bxc5 {[%clk 0:01:42.7]} 18. bxc5
{[%clk 0:02:20.2]} 18... Ba4 {[%clk 0:01:42.8]} 19. Qe1 {[%clk 0:02:17.4]} 19...
Nd5 {[%clk 0:01:42]} 20. Rxb7 {[%clk 0:02:11.6]} 20... Qd7 {[%clk 0:01:40.7]}
21. Rb1 {[%clk 0:01:38.3]} 21... Bc2 {[%clk 0:01:33.9]} 22. c6 {[%clk
0:01:25.4]} 22... Qd6 {[%clk 0:01:27]} 23. Rb5 {[%clk 0:01:22.2]} 23... Nb6
{[%clk 0:01:07.8]} 24. Bf4 {[%clk 0:01:10.1]} 24... Qd8 {[%clk 0:00:57.3]} 25.
Qd2 {[%clk 0:01:09.1]} 25... Ra2 {[%clk 0:00:55.6]} 26. Bf3 {[%clk 0:00:57.9]}
26... Bb3 {[%clk 0:00:43.4]} 27. Qc1 {[%clk 0:00:52.7]} 27... Bd5 {[%clk
0:00:43.1]} 28. Bxd5 {[%clk 0:00:47.9]} 28... Nxd5 {[%clk 0:00:42.3]} 29. Qc4
{[%clk 0:00:48.5]} 29... Nxf4 {[%clk 0:00:30]} 30. Qxa2 {[%clk 0:00:48.1]} 30...
Nxe2+ {[%clk 0:00:19.1]} 31. Kg2 {[%clk 0:00:38.3]} 31... Nc3 {[%clk 0:00:19.3]}
32. Qc4 {[%clk 0:00:32.7]} 32... Nxb5 {[%clk 0:00:19.1]} 33. Qxb5 {[%clk
0:00:32.8]} 33... Qd6 {[%clk 0:00:19.3]} 34. Ra1 {[%clk 0:00:23.8]} 34... g6
{[%clk 0:00:19.1]} 35. Qc4 {[%clk 0:00:21.1]} 35... Kg7 {[%clk 0:00:17.3]} 36.
Ra4 {[%clk 0:00:20.6]} 36... Re6 {[%clk 0:00:15.7]} 37. Qxd4+ {[%clk 0:00:20.3]}
37... Qxd4 {[%clk 0:00:13.9]} 38. Rxd4 {[%clk 0:00:20.4]} 38... Rxc6 {[%clk
0:00:14.8]} 39. Rd7 {[%clk 0:00:19]} 39... Kf6 {[%clk 0:00:14.9]} 40. f4 {[%clk
0:00:16.2]} 40... Ke6 {[%clk 0:00:15.1]} 41. Rd4 {[%clk 0:00:15]} 41... Rc2+
{[%clk 0:00:13.1]} 42. Kf3 {[%clk 0:00:15.2]} 42... f5 {[%clk 0:00:13]} 43. Rd8
{[%clk 0:00:14.8]} 43... Rd2 {[%clk 0:00:11]} 44. Rh8 {[%clk 0:00:14.1]} 44...
Rxd3+ {[%clk 0:00:10.9]} 45. Kf2 {[%clk 0:00:14.3]} 45... Ra3 {[%clk 0:00:09.6]}
46. Rxh7 {[%clk 0:00:14]} 46... c5 {[%clk 0:00:10]} 47. Rg7 {[%clk 0:00:13.8]}
47... c4 {[%clk 0:00:08]} 48. Rxg6+ {[%clk 0:00:14.1]} 48... Kd5 {[%clk
0:00:08.8]} 49. Rg8 {[%clk 0:00:14.1]} 49... c3 {[%clk 0:00:08.7]} 50. Rd8+
{[%clk 0:00:14.1]} 50... Ke4 {[%clk 0:00:09.1]} 51. Re8+ {[%clk 0:00:14.2]}
51... Kd3 {[%clk 0:00:09.4]} 52. Rd8+ {[%clk 0:00:14.5]} 52... Kc4 {[%clk
0:00:09.8]} 53. Rc8+ {[%clk 0:00:14.3]} 53... Kb3 {[%clk 0:00:10.3]} 54. Rb8+
{[%clk 0:00:14.5]} 54... Ka2 {[%clk 0:00:10.4]} 55. Rc8 {[%clk 0:00:14.7]} 55...
Kb2 {[%clk 0:00:09.9]} 56. Rb8+ {[%clk 0:00:13.8]} 56... Rb3 {[%clk 0:00:10.1]}
57. Rc8 {[%clk 0:00:13.3]} 57... c2 {[%clk 0:00:10.4]} 58. g4 {[%clk 0:00:12.7]}
58... Rc3 {[%clk 0:00:09.8]} 59. Rb8+ {[%clk 0:00:12.5]} 59... Ka3 {[%clk
0:00:09.8]} 60. Ra8+ {[%clk 0:00:12.7]} 60... Kb4 {[%clk 0:00:10.1]} 61. Ra1
{[%clk 0:00:11.8]} 61... c1=Q {[%clk 0:00:09.6]} 62. Rxc1 {[%clk 0:00:11.8]}
62... Rxc1 {[%clk 0:00:10.5]} 63. gxf5 {[%clk 0:00:10.6]} 63... Kc5 {[%clk
0:00:10.8]} 64. Kf3 {[%clk 0:00:10.6]} 64... Kd6 {[%clk 0:00:10.8]} 65. Kg4
{[%clk 0:00:10.6]} 65... Ke7 {[%clk 0:00:11.2]} 66. h4 {[%clk 0:00:07.5]} 66...
Kf6 {[%clk 0:00:10.8]} 67. Kf3 {[%clk 0:00:06.6]} 67... Rh1 {[%clk 0:00:10.6]}
0-1

[Event "*** Titled Tuesday Blitz"]
[Site "Chess.com"]
[Date "2020.04.21"]
[Round "6"]
[White "shyam"]
[Black "jefferyx"]
[Result "0-1"]
[WhiteElo "2649"]
[BlackElo "2847"]
[TimeControl "180+1"]
[EndTime "11:10:05 PDT"]
[Termination "jefferyx won by resignation"]

1. d4 {[%clk 0:03:00.9]} 1... Nf6 {[%clk 0:02:19.7]} 2. Nc3 {[%clk 0:02:59.7]}
2... d5 {[%clk 0:02:13.5]} 3. Bf4 {[%clk 0:02:59.8]} 3... e6 {[%clk 0:02:13.9]}
4. e3 {[%clk 0:02:59.9]} 4... Bb4 {[%clk 0:02:13.7]} 5. Ne2 {[%clk 0:02:59.4]}
5... O-O {[%clk 0:02:13.7]} 6. a3 {[%clk 0:02:59.6]} 6... Be7 {[%clk 0:02:13.5]}
7. Qd2 {[%clk 0:02:54.9]} 7... c5 {[%clk 0:02:13.5]} 8. g4 {[%clk 0:02:45.4]}
8... Nc6 {[%clk 0:02:10.1]} 9. g5 {[%clk 0:02:44.2]} 9... Nd7 {[%clk 0:02:08.6]}
10. h4 {[%clk 0:02:42.5]} 10... b5 {[%clk 0:02:08.1]} 11. Bg2 {[%clk 0:02:39.1]}
11... Nb6 {[%clk 0:01:59.3]} 12. b3 {[%clk 0:02:34.5]} 12... b4 {[%clk
0:01:54.5]} 13. axb4 {[%clk 0:02:30.4]} 13... cxb4 {[%clk 0:01:50.6]} 14. Na4
{[%clk 0:02:22.7]} 14... Nxa4 {[%clk 0:01:50.6]} 15. Rxa4 {[%clk 0:02:23.6]}
15... Bd7 {[%clk 0:01:49.9]} 16. Ra2 {[%clk 0:02:14.5]} 16... a5 {[%clk
0:01:45]} 17. Bg3 {[%clk 0:01:57.5]} 17... Na7 {[%clk 0:01:43.1]} 18. f4 {[%clk
0:01:53.4]} 18... Nb5 {[%clk 0:01:43]} 19. h5 {[%clk 0:01:53.9]} 19... Nd6
{[%clk 0:01:40.3]} 20. Bf2 {[%clk 0:01:42.7]} 20... Rc8 {[%clk 0:01:39.8]} 21.
Ng3 {[%clk 0:01:42.6]} 21... Qc7 {[%clk 0:01:30.9]} 22. Bf3 {[%clk 0:01:34]}
22... a4 {[%clk 0:01:26.4]} 23. bxa4 {[%clk 0:01:29.8]} 23... Qc4 {[%clk
0:01:26.3]} 24. Rb2 {[%clk 0:01:26.2]} 24... Bxa4 {[%clk 0:01:26.2]} 25. g6
{[%clk 0:01:22.4]} 25... Bxc2 {[%clk 0:01:24.6]} 26. Rxb4 {[%clk 0:01:11.2]}
26... Ne4 {[%clk 0:01:20.9]} 27. gxf7+ {[%clk 0:00:38.4]} 27... Kxf7 {[%clk
0:01:21.8]} 28. Rxc4 {[%clk 0:00:33.5]} 28... Nxd2 {[%clk 0:01:22.1]} 29. Rxc8
{[%clk 0:00:30.7]} 29... Nxf3+ {[%clk 0:01:22.3]} 30. Ke2 {[%clk 0:00:31.6]}
30... Nxd4+ {[%clk 0:01:22.8]} 31. exd4 {[%clk 0:00:32.5]} 31... Rxc8 {[%clk
0:01:23.3]} 32. Rc1 {[%clk 0:00:31.4]} 32... Rc4 {[%clk 0:01:23.2]} 33. Be3
{[%clk 0:00:30.6]} 33... Bh4 {[%clk 0:01:12.6]} 34. Kf3 {[%clk 0:00:26.9]} 34...
Ba4 {[%clk 0:01:07]} 35. Ra1 {[%clk 0:00:26.7]} 35... Be7 {[%clk 0:00:54.2]} 36.
Nf1 {[%clk 0:00:25.3]} 36... Bc2 {[%clk 0:00:53.9]} 37. Nd2 {[%clk 0:00:24.9]}
37... Rc3 {[%clk 0:00:53.8]} 38. Ra7 {[%clk 0:00:24.1]} 38... Bd1+ {[%clk
0:00:53.3]} 39. Kf2 {[%clk 0:00:23.2]} 39... Bxh5 {[%clk 0:00:53.9]} 40. f5
{[%clk 0:00:18.9]} 40... Kf6 {[%clk 0:00:46.7]} 41. Bg5+ {[%clk 0:00:07.9]}
41... Kxg5 {[%clk 0:00:46.6]} 42. Rxe7 {[%clk 0:00:08.8]} 42... Rd3 {[%clk
0:00:47.2]} 43. Nf1 {[%clk 0:00:06.2]} 43... exf5 {[%clk 0:00:39.9]} 44. Rxg7+
{[%clk 0:00:06.1]} 44... Kf4 {[%clk 0:00:40.4]} 45. Rxh7 {[%clk 0:00:05.7]}
45... Bg4 {[%clk 0:00:40]} 46. Re7 {[%clk 0:00:03.6]} 46... Rxd4 {[%clk
0:00:40]} 47. Ra7 {[%clk 0:00:03.5]} 47... Rb4 {[%clk 0:00:38.3]} 48. Ra2 {[%clk
0:00:02.9]} 48... d4 {[%clk 0:00:38.8]} 49. Rd2 {[%clk 0:00:02.2]} 49... Ke5
{[%clk 0:00:37.9]} 50. Ra2 {[%clk 0:00:03.1]} 50... f4 {[%clk 0:00:33.7]} 51.
Nd2 {[%clk 0:00:04]} 51... d3 {[%clk 0:00:30.3]} 52. Ra3 {[%clk 0:00:02.8]}
52... Kd4 {[%clk 0:00:30]} 53. Ra2 {[%clk 0:00:01.4]} 53... Kc3 {[%clk
0:00:28.6]} 54. Ke1 {[%clk 0:00:02.3]} 54... Be6 {[%clk 0:00:18.7]} 55. Ra3+
{[%clk 0:00:02.8]} 55... Kd4 {[%clk 0:00:19.3]} 56. Ra1 {[%clk 0:00:02.8]} 56...
Bd5 {[%clk 0:00:19.5]} 57. Nf1 {[%clk 0:00:03]} 57... Rb2 {[%clk 0:00:17.8]} 58.
Nd2 {[%clk 0:00:03.4]} 58... Kc3 {[%clk 0:00:15.1]} 59. Nb1+ {[%clk 0:00:02.6]}
59... Kb4 {[%clk 0:00:13.1]} 60. Nd2 {[%clk 0:00:03.3]} 60... f3 {[%clk
0:00:13.4]} 61. Rc1 {[%clk 0:00:03.2]} 61... f2+ {[%clk 0:00:13.3]} 62. Kxf2
{[%clk 0:00:03.7]} 62... Rxd2+ {[%clk 0:00:12.8]} 63. Ke3 {[%clk 0:00:04.6]}
63... Rc2 {[%clk 0:00:13.2]} 64. Rb1+ {[%clk 0:00:03.4]} 64... Kc3 {[%clk
0:00:13.4]} 65. Rb8 {[%clk 0:00:04]} 65... Re2+ {[%clk 0:00:13.3]} 66. Kf4
{[%clk 0:00:03.9]} 66... d2 {[%clk 0:00:14.2]} 67. Rc8+ {[%clk 0:00:04.2]} 67...
Kd4 {[%clk 0:00:14.6]} 0-1